[Event "Titled Tuesday Blitz November 07 Early 2023"]
[White "Reprintsev, Alexander"]
[Black "GaiozNigalidze"]
[WhiteFideId "14100541"]
[WhiteElo "2503"]
[BlackElo "2706"]
[Result "0-1"]
[Round "4"]
[TimeControl "180+1"]
[Date "2023.11.07"]
[WhiteClock "0:00:16"]
[BlackClock "0:01:06"]
[Board "80"]

1. e4 {[%clk 0:02:56]}  c5 {[%clk 0:02:58]} 2. b3 {[%clk 0:02:56]}  g6 {[%clk 0:02:57]} 3. Bb2 {[%clk 0:02:56]}  Nf6 {[%clk 0:02:57]} 4. e5 {[%clk 0:02:55]}  Nd5 {[%clk 0:02:57]} 5. Nc3 {[%clk 0:02:56]}  Nxc3 {[%clk 0:02:56]} 6. dxc3 {[%clk 0:02:57]}  Bg7 {[%clk 0:02:56]} 7. Qd5 {[%clk 0:02:56]}  Qc7 {[%clk 0:02:54]} 8. Nf3 {[%clk 0:02:49]}  O-O {[%clk 0:02:53]} 9. O-O-O {[%clk 0:02:48]}  b6 {[%clk 0:02:34]} 10. c4 {[%clk 0:02:30]}  Nc6 {[%clk 0:02:30]} 11. h4 {[%clk 0:02:26]}  h5 {[%clk 0:02:20]} 12. Be2 {[%clk 0:02:14]}  Nb4 {[%clk 0:02:16]} 13. Qxa8 {[%clk 0:02:08]}  Nc6 {[%clk 0:02:03]} 14. Rhe1 {[%clk 0:01:52]}  Bb7 {[%clk 0:02:00]} 15. Qxf8+ {[%clk 0:01:51]}  Kxf8 {[%clk 0:02:01]} 16. Bd3 {[%clk 0:01:50]}  Nb4 {[%clk 0:01:58]} 17. a3 {[%clk 0:01:49]}  Bxf3 {[%clk 0:01:56]} 18. gxf3 {[%clk 0:01:48]}  Nc6 {[%clk 0:01:55]} 19. f4 {[%clk 0:01:43]}  d6 {[%clk 0:01:53]} 20. exd6 {[%clk 0:01:41]}  exd6 {[%clk 0:01:54]} 21. Bxg7+ {[%clk 0:01:39]}  Kxg7 {[%clk 0:01:55]} 22. f5 {[%clk 0:01:40]}  gxf5 {[%clk 0:01:46]} 23. Bxf5 {[%clk 0:01:39]}  Nd4 {[%clk 0:01:46]} 24. Bd3 {[%clk 0:01:28]}  Qd8 {[%clk 0:01:39]} 25. Rg1+ {[%clk 0:01:27]}  Kf8 {[%clk 0:01:38]} 26. Rg5 {[%clk 0:01:27]}  Qf6 {[%clk 0:01:35]} 27. Rxh5 {[%clk 0:01:18]}  Qf4+ {[%clk 0:01:35]} 28. Kb2 {[%clk 0:00:47]}  Qf6 {[%clk 0:01:29]} 29. Rd5 {[%clk 0:00:25]}  Ne2+ {[%clk 0:01:20]} 30. Kb1 {[%clk 0:00:22]}  Nc3+ {[%clk 0:01:20]} 31. Kc1 {[%clk 0:00:22]}  Nxd5 {[%clk 0:01:11]} 32. cxd5 {[%clk 0:00:21]}  Qxh4 {[%clk 0:01:12]} 33. f3 {[%clk 0:00:20]}  Qf4+ {[%clk 0:01:11]} 34. Kb2 {[%clk 0:00:20]}  Qxf3 {[%clk 0:01:11]} 35. Rf1 {[%clk 0:00:19]}  Qxd5 {[%clk 0:01:12]} 36. Bc4 {[%clk 0:00:19]}  Qe5+ {[%clk 0:01:12]} 37. Ka2 {[%clk 0:00:18]}  d5 {[%clk 0:01:13]} 38. Bd3 {[%clk 0:00:19]}  f6 {[%clk 0:01:08]} 39. a4 {[%clk 0:00:19]}  Ke7 {[%clk 0:01:08]} 40. a5 {[%clk 0:00:19]}  bxa5 {[%clk 0:01:07]} 41. Ka3 {[%clk 0:00:19]}  Kd6 {[%clk 0:01:06]} 42. Rf5 {[%clk 0:00:18]}  Qc3 {[%clk 0:01:06]} 43. Rf3 {[%clk 0:00:16]}  Qa1# {[%clk 0:01:06]} 0-1


[Site "https://www.chess.com"]

[Event "Titled Tuesday Blitz November 07 Early 2023"]
[White "Hasangatin, Ramil"]
[Black "Willy, Stephen"]
[WhiteFideId "4122160"]
[BlackFideId "30981468"]
[WhiteElo "2703"]
[BlackElo "2493"]
[Result "1-0"]
[Round "4"]
[TimeControl "180+1"]
[Date "2023.11.07"]
[WhiteClock "0:02:02"]
[BlackClock "0:00:00"]
[Board "82"]

1. e4 {[%clk 0:03:00]}  d5 {[%clk 0:02:58]} 2. exd5 {[%clk 0:02:59]}  Nf6 {[%clk 0:02:59]} 3. Bb5+ {[%clk 0:02:56]}  Bd7 {[%clk 0:02:57]} 4. Bc4 {[%clk 0:02:56]}  Bg4 {[%clk 0:02:56]} 5. f3 {[%clk 0:02:56]}  Bf5 {[%clk 0:02:56]} 6. Nc3 {[%clk 0:02:56]}  c6 {[%clk 0:02:56]} 7. dxc6 {[%clk 0:02:56]}  Nxc6 {[%clk 0:02:56]} 8. d3 {[%clk 0:02:55]}  e6 {[%clk 0:02:55]} 9. Nge2 {[%clk 0:02:55]}  Bc5 {[%clk 0:02:54]} 10. Ng3 {[%clk 0:02:55]}  O-O {[%clk 0:02:49]} 11. Nce4 {[%clk 0:02:53]}  Ne5 {[%clk 0:02:17]} 12. Bb3 {[%clk 0:02:51]}  Nxe4 {[%clk 0:02:08]} 13. dxe4 {[%clk 0:02:49]}  Qxd1+ {[%clk 0:02:00]} 14. Kxd1 {[%clk 0:02:50]}  Bg6 {[%clk 0:02:00]} 15. h4 {[%clk 0:02:50]}  h6 {[%clk 0:01:38]} 16. h5 {[%clk 0:02:50]}  Bh7 {[%clk 0:01:37]} 17. Bf4 {[%clk 0:02:51]}  Nc6 {[%clk 0:01:25]} 18. c3 {[%clk 0:02:50]}  Rfd8+ {[%clk 0:01:21]} 19. Ke2 {[%clk 0:02:50]}  Rd7 {[%clk 0:01:12]} 20. Rad1 {[%clk 0:02:42]}  Rad8 {[%clk 0:01:10]} 21. Rxd7 {[%clk 0:02:42]}  Rxd7 {[%clk 0:01:11]} 22. Rd1 {[%clk 0:02:42]}  Rxd1 {[%clk 0:01:11]} 23. Kxd1 {[%clk 0:02:40]}  Kf8 {[%clk 0:01:05]} 24. Ke2 {[%clk 0:02:38]}  Ke7 {[%clk 0:01:01]} 25. Bc2 {[%clk 0:02:38]}  Bg8 {[%clk 0:00:54]} 26. b4 {[%clk 0:02:38]}  Bb6 {[%clk 0:00:49]} 27. a3 {[%clk 0:02:38]}  f6 {[%clk 0:00:46]} 28. Bd3 {[%clk 0:02:30]}  Bf7 {[%clk 0:00:25]} 29. Bb5 {[%clk 0:02:28]}  Nd8 {[%clk 0:00:17]} 30. Be3 {[%clk 0:02:27]}  Bc7 {[%clk 0:00:13]} 31. f4 {[%clk 0:02:27]}  a6 {[%clk 0:00:12]} 32. Bd3 {[%clk 0:02:26]}  Nc6 {[%clk 0:00:08]} 33. Kd2 {[%clk 0:02:21]}  Kd7 {[%clk 0:00:04]} 34. Be2 {[%clk 0:02:19]}  Ne7 {[%clk 0:00:03]} 35. Bf3 {[%clk 0:02:13]}  b5 {[%clk 0:00:03]} 36. Ne2 {[%clk 0:02:13]}  Be8 {[%clk 0:00:01]} 37. Bc5 {[%clk 0:02:10]}  Bf7 {[%clk 0:00:01]} 38. g3 {[%clk 0:02:06]}  Nc6 {[%clk 0:00:02]} 39. Nd4 {[%clk 0:02:05]}  e5 {[%clk 0:00:01]} 40. Nxc6 {[%clk 0:02:03]}  Kxc6 {[%clk 0:00:02]} 41. f5 {[%clk 0:02:03]}  Bd8 {[%clk 0:00:00]} 42. Bf8 {[%clk 0:02:02]} 1-0


[Site "https://www.chess.com"]

[Event "Titled Tuesday Blitz November 07 Early 2023"]
[White "NovozhilovSemen"]
[Black "lagunanivaria"]
[WhiteElo "2698"]
[BlackElo "2458"]
[Result "1-0"]
[Round "4"]
[TimeControl "180+1"]
[Date "2023.11.07"]
[WhiteClock "0:00:19"]
[BlackClock "0:00:05"]
[Board "84"]

1. d4 {[%clk 0:03:00]}  Nf6 {[%clk 0:02:57]} 2. Nf3 {[%clk 0:03:00]}  e6 {[%clk 0:02:56]} 3. e3 {[%clk 0:03:00]}  b6 {[%clk 0:02:54]} 4. Bd3 {[%clk 0:02:57]}  Bb7 {[%clk 0:02:54]} 5. O-O {[%clk 0:02:57]}  c5 {[%clk 0:02:53]} 6. c4 {[%clk 0:02:56]}  d6 {[%clk 0:02:54]} 7. Nc3 {[%clk 0:02:56]}  Be7 {[%clk 0:02:53]} 8. d5 {[%clk 0:02:56]}  e5 {[%clk 0:02:52]} 9. Nd2 {[%clk 0:02:44]}  O-O {[%clk 0:02:51]} 10. Nde4 {[%clk 0:02:44]}  Nxe4 {[%clk 0:02:51]} 11. Nxe4 {[%clk 0:02:45]}  f5 {[%clk 0:02:51]} 12. Ng3 {[%clk 0:02:44]}  g6 {[%clk 0:02:42]} 13. Bd2 {[%clk 0:02:44]}  Nd7 {[%clk 0:02:41]} 14. a3 {[%clk 0:02:37]}  Bf6 {[%clk 0:02:39]} 15. Rb1 {[%clk 0:02:37]}  Bg7 {[%clk 0:02:38]} 16. Re1 {[%clk 0:02:29]}  Rc8 {[%clk 0:02:22]} 17. b4 {[%clk 0:02:15]}  h5 {[%clk 0:02:18]} 18. e4 {[%clk 0:02:09]}  f4 {[%clk 0:02:18]} 19. Ne2 {[%clk 0:02:09]}  f3 {[%clk 0:02:12]} 20. Nc3 {[%clk 0:02:08]}  fxg2 {[%clk 0:02:10]} 21. Nb5 {[%clk 0:02:07]}  Nf6 {[%clk 0:01:51]} 22. h3 {[%clk 0:01:51]}  a6 {[%clk 0:01:47]} 23. Na7 {[%clk 0:01:50]}  Ra8 {[%clk 0:01:44]} 24. Nc6 {[%clk 0:01:50]}  Bxc6 {[%clk 0:01:44]} 25. dxc6 {[%clk 0:01:51]}  Qc7 {[%clk 0:01:44]} 26. bxc5 {[%clk 0:01:49]}  bxc5 {[%clk 0:01:45]} 27. Qa4 {[%clk 0:01:48]}  Rfc8 {[%clk 0:01:35]} 28. Rb7 {[%clk 0:01:31]}  Qxc6 {[%clk 0:01:35]} 29. Qxc6 {[%clk 0:01:32]}  Rxc6 {[%clk 0:01:36]} 30. Kxg2 {[%clk 0:01:33]}  Ne8 {[%clk 0:01:31]} 31. Ba5 {[%clk 0:01:31]}  Bf6 {[%clk 0:01:20]} 32. Reb1 {[%clk 0:01:28]}  Bd8 {[%clk 0:01:20]} 33. Bd2 {[%clk 0:01:20]}  Rc7 {[%clk 0:01:19]} 34. R7b2 {[%clk 0:01:13]}  Kf7 {[%clk 0:01:14]} 35. Bc2 {[%clk 0:01:11]}  Ng7 {[%clk 0:01:08]} 36. Ba5 {[%clk 0:00:56]}  Re7 {[%clk 0:00:56]} 37. Bc3 {[%clk 0:00:39]}  Ne6 {[%clk 0:00:55]} 38. Rb8 {[%clk 0:00:39]}  Rxb8 {[%clk 0:00:50]} 39. Rxb8 {[%clk 0:00:40]}  Bc7 {[%clk 0:00:50]} 40. Ra8 {[%clk 0:00:39]}  Nf4+ {[%clk 0:00:38]} 41. Kh2 {[%clk 0:00:37]}  Ne2 {[%clk 0:00:37]} 42. Bd2 {[%clk 0:00:30]}  Nd4 {[%clk 0:00:36]} 43. Bd1 {[%clk 0:00:31]}  a5 {[%clk 0:00:29]} 44. Kg2 {[%clk 0:00:27]}  Nc6 {[%clk 0:00:26]} 45. Ba4 {[%clk 0:00:25]}  Nd4 {[%clk 0:00:20]} 46. Bg5 {[%clk 0:00:22]}  Re6 {[%clk 0:00:17]} 47. Ra7 {[%clk 0:00:20]}  Kg8 {[%clk 0:00:09]} 48. Rxc7 {[%clk 0:00:19]}  Ne2 {[%clk 0:00:04]} 49. Bd7 {[%clk 0:00:19]}  Nf4+ {[%clk 0:00:03]} 50. Bxf4 {[%clk 0:00:19]}  exf4 {[%clk 0:00:04]} 51. Bxe6+ {[%clk 0:00:19]}  Kh8 {[%clk 0:00:05]} 52. Kf3 {[%clk 0:00:19]}  g5 {[%clk 0:00:05]} 53. e5 {[%clk 0:00:17]}  dxe5 {[%clk 0:00:05]} 54. Ke4 {[%clk 0:00:17]}  g4 {[%clk 0:00:06]} 55. Kf5 {[%clk 0:00:18]}  g3 {[%clk 0:00:04]} 56. Kg6 {[%clk 0:00:18]}  g2 {[%clk 0:00:05]} 57. Rc8# {[%clk 0:00:19]} 1-0


[Site "https://www.chess.com"]

[Event "Titled Tuesday Blitz November 07 Early 2023"]
[White "Nasuta, Grzegorz"]
[Black "Shishkov, Andrei"]
[WhiteFideId "1141686"]
[BlackFideId "4500563"]
[WhiteElo "2697"]
[BlackElo "2453"]
[Result "1/2-1/2"]
[Round "4"]
[TimeControl "180+1"]
[Date "2023.11.07"]
[WhiteClock "0:00:03"]
[BlackClock "0:00:03"]
[Board "85"]

1. e4 {[%clk 0:03:00]}  d5 {[%clk 0:02:59]} 2. exd5 {[%clk 0:03:00]}  Nf6 {[%clk 0:02:59]} 3. Nf3 {[%clk 0:03:00]}  Nxd5 {[%clk 0:02:59]} 4. d4 {[%clk 0:03:00]}  Bg4 {[%clk 0:02:59]} 5. h3 {[%clk 0:02:58]}  Bh5 {[%clk 0:02:57]} 6. Be2 {[%clk 0:02:52]}  Nc6 {[%clk 0:02:56]} 7. O-O {[%clk 0:02:49]}  e6 {[%clk 0:02:56]} 8. c4 {[%clk 0:02:45]}  Nb6 {[%clk 0:02:56]} 9. b3 {[%clk 0:02:22]}  Bxf3 {[%clk 0:02:55]} 10. Bxf3 {[%clk 0:02:22]}  Nxd4 {[%clk 0:02:56]} 11. Bxb7 {[%clk 0:02:22]}  Rb8 {[%clk 0:02:56]} 12. Be4 {[%clk 0:01:48]}  Be7 {[%clk 0:02:52]} 13. Nc3 {[%clk 0:01:38]}  O-O {[%clk 0:02:45]} 14. Be3 {[%clk 0:01:34]}  c5 {[%clk 0:02:41]} 15. Ne2 {[%clk 0:01:17]}  f5 {[%clk 0:02:32]} 16. Bd3 {[%clk 0:00:59]}  e5 {[%clk 0:02:29]} 17. f3 {[%clk 0:00:54]}  Nc8 {[%clk 0:01:55]} 18. Nc3 {[%clk 0:00:49]}  Bg5 {[%clk 0:01:39]} 19. Bxg5 {[%clk 0:00:39]}  Qxg5 {[%clk 0:01:40]} 20. f4 {[%clk 0:00:40]}  exf4 {[%clk 0:01:35]} 21. Qd2 {[%clk 0:00:38]}  Qg3 {[%clk 0:01:18]} 22. Rxf4 {[%clk 0:00:33]}  Ne7 {[%clk 0:01:18]} 23. Rd1 {[%clk 0:00:23]}  Ng6 {[%clk 0:01:13]} 24. Rff1 {[%clk 0:00:21]}  Nh4 {[%clk 0:01:09]} 25. Kh1 {[%clk 0:00:20]}  Rbe8 {[%clk 0:00:53]} 26. Qf2 {[%clk 0:00:18]}  Qg5 {[%clk 0:00:35]} 27. Nd5 {[%clk 0:00:16]}  Re5 {[%clk 0:00:27]} 28. Rg1 {[%clk 0:00:07]}  f4 {[%clk 0:00:24]} 29. b4 {[%clk 0:00:06]}  Ndf5 {[%clk 0:00:23]} 30. bxc5 {[%clk 0:00:05]}  Ng3+ {[%clk 0:00:23]} 31. Kh2 {[%clk 0:00:06]}  Ne4 {[%clk 0:00:17]} 32. Bxe4 {[%clk 0:00:06]}  Rxe4 {[%clk 0:00:18]} 33. c6 {[%clk 0:00:06]}  Rxc4 {[%clk 0:00:18]} 34. Rc1 {[%clk 0:00:05]}  Qxd5 {[%clk 0:00:17]} 35. Rxc4 {[%clk 0:00:03]}  Qxc4 {[%clk 0:00:18]} 36. Qxh4 {[%clk 0:00:02]}  Qxc6 {[%clk 0:00:16]} 37. Qf2 {[%clk 0:00:02]}  Qd6 {[%clk 0:00:15]} 38. Qf3 {[%clk 0:00:02]}  Re8 {[%clk 0:00:14]} 39. Rf1 {[%clk 0:00:02]}  Rf8 {[%clk 0:00:14]} 40. Kh1 {[%clk 0:00:02]}  h6 {[%clk 0:00:14]} 41. Rf2 {[%clk 0:00:02]}  Kh8 {[%clk 0:00:14]} 42. Kh2 {[%clk 0:00:02]}  Qe6 {[%clk 0:00:14]} 43. Qb3 {[%clk 0:00:02]}  Qxb3 {[%clk 0:00:14]} 44. axb3 {[%clk 0:00:03]}  g5 {[%clk 0:00:14]} 45. Ra2 {[%clk 0:00:03]}  Rf7 {[%clk 0:00:15]} 46. Ra6 {[%clk 0:00:04]}  Kg7 {[%clk 0:00:15]} 47. b4 {[%clk 0:00:04]}  Rb7 {[%clk 0:00:15]} 48. Kg1 {[%clk 0:00:03]}  Rxb4 {[%clk 0:00:14]} 49. Rxa7+ {[%clk 0:00:04]}  Kg6 {[%clk 0:00:14]} 50. Ra6+ {[%clk 0:00:04]}  Kh5 {[%clk 0:00:15]} 51. Kh2 {[%clk 0:00:05]}  Rb3 {[%clk 0:00:15]} 52. Kg1 {[%clk 0:00:05]}  Rb2 {[%clk 0:00:15]} 53. Kh2 {[%clk 0:00:06]}  f3 {[%clk 0:00:15]} 54. Kg3 {[%clk 0:00:05]}  fxg2 {[%clk 0:00:12]} 55. Kh2 {[%clk 0:00:06]}  Rc2 {[%clk 0:00:11]} 56. Rb6 {[%clk 0:00:04]}  Rf2 {[%clk 0:00:11]} 57. Ra6 {[%clk 0:00:04]}  g4 {[%clk 0:00:10]} 58. hxg4+ {[%clk 0:00:04]}  Kg5 {[%clk 0:00:10]} 59. Rb6 {[%clk 0:00:03]}  Rd2 {[%clk 0:00:09]} 60. Ra6 {[%clk 0:00:03]}  Re2 {[%clk 0:00:07]} 61. Rb6 {[%clk 0:00:03]}  Rf2 {[%clk 0:00:07]} 62. Ra6 {[%clk 0:00:03]}  Kxg4 {[%clk 0:00:05]} 63. Rxh6 {[%clk 0:00:03]}  Kf3 {[%clk 0:00:05]} 64. Rg6 {[%clk 0:00:02]}  Rd2 {[%clk 0:00:03]} 65. Rg3+ {[%clk 0:00:02]}  Kf4 {[%clk 0:00:03]} 66. Rxg2 {[%clk 0:00:02]}  Rxg2+ {[%clk 0:00:03]} 67. Kxg2 {[%clk 0:00:03]} 1/2-1/2


[Site "https://www.chess.com"]

[Event "Titled Tuesday Blitz November 07 Early 2023"]
[White "Kovalevsky, Stanislav"]
[Black "Harikrishnan.A.Ra"]
[WhiteFideId "13508598"]
[BlackFideId "5081483"]
[WhiteElo "2446"]
[BlackElo "2693"]
[Result "0-1"]
[Round "4"]
[TimeControl "180+1"]
[Date "2023.11.07"]
[WhiteClock "0:00:00"]
[BlackClock "0:00:05"]
[Board "87"]

1. e4 {[%clk 0:03:00]}  Nf6 {[%clk 0:02:58]} 2. e5 {[%clk 0:02:56]}  Ng8 {[%clk 0:02:59]} 3. Nf3 {[%clk 0:02:56]}  d6 {[%clk 0:02:59]} 4. exd6 {[%clk 0:02:56]}  cxd6 {[%clk 0:02:59]} 5. d4 {[%clk 0:02:57]}  Nf6 {[%clk 0:03:00]} 6. Bd3 {[%clk 0:02:57]}  g6 {[%clk 0:03:00]} 7. Bg5 {[%clk 0:02:54]}  Bg7 {[%clk 0:02:59]} 8. Qd2 {[%clk 0:02:54]}  Bg4 {[%clk 0:02:57]} 9. Qf4 {[%clk 0:02:41]}  Qa5+ {[%clk 0:02:52]} 10. Nbd2 {[%clk 0:02:35]}  Bxf3 {[%clk 0:02:52]} 11. gxf3 {[%clk 0:02:31]}  h6 {[%clk 0:02:51]} 12. Bxf6 {[%clk 0:02:29]}  Bxf6 {[%clk 0:02:51]} 13. c3 {[%clk 0:02:24]}  Nc6 {[%clk 0:02:31]} 14. Qg4 {[%clk 0:02:13]}  h5 {[%clk 0:02:28]} 15. Qh3 {[%clk 0:02:11]}  Qg5 {[%clk 0:01:52]} 16. O-O-O {[%clk 0:01:59]}  Qh4 {[%clk 0:01:36]} 17. Qf1 {[%clk 0:01:57]}  O-O-O {[%clk 0:01:33]} 18. Kb1 {[%clk 0:01:55]}  Kb8 {[%clk 0:01:33]} 19. Bb5 {[%clk 0:01:23]}  Rc8 {[%clk 0:01:22]} 20. Ne4 {[%clk 0:01:19]}  Bg7 {[%clk 0:01:20]} 21. Qe2 {[%clk 0:01:05]}  Qf4 {[%clk 0:01:13]} 22. h3 {[%clk 0:00:55]}  Rc7 {[%clk 0:01:13]} 23. Rhg1 {[%clk 0:00:52]}  Rhc8 {[%clk 0:01:12]} 24. a3 {[%clk 0:00:50]}  Qf5 {[%clk 0:01:04]} 25. h4 {[%clk 0:00:42]}  Qf4 {[%clk 0:00:57]} 26. Ng5 {[%clk 0:00:36]}  Na5 {[%clk 0:00:49]} 27. Qe4 {[%clk 0:00:33]}  Qxe4+ {[%clk 0:00:33]} 28. fxe4 {[%clk 0:00:34]}  e6 {[%clk 0:00:31]} 29. Nf3 {[%clk 0:00:32]}  a6 {[%clk 0:00:27]} 30. Bd3 {[%clk 0:00:30]}  b5 {[%clk 0:00:28]} 31. Rg5 {[%clk 0:00:27]}  Bf6 {[%clk 0:00:26]} 32. Rgg1 {[%clk 0:00:21]}  Rb7 {[%clk 0:00:26]} 33. e5 {[%clk 0:00:20]}  dxe5 {[%clk 0:00:24]} 34. dxe5 {[%clk 0:00:21]}  Be7 {[%clk 0:00:24]} 35. Be4 {[%clk 0:00:21]}  Rbc7 {[%clk 0:00:24]} 36. Ng5 {[%clk 0:00:19]}  Bf8 {[%clk 0:00:21]} 37. Nh7 {[%clk 0:00:19]}  Bc5 {[%clk 0:00:20]} 38. Rg2 {[%clk 0:00:18]}  Nc4 {[%clk 0:00:19]} 39. f4 {[%clk 0:00:17]}  Ne3 {[%clk 0:00:19]} 40. Rgd2 {[%clk 0:00:18]}  Nxd1 {[%clk 0:00:19]} 41. Rxd1 {[%clk 0:00:19]}  f5 {[%clk 0:00:19]} 42. exf6 {[%clk 0:00:16]}  Rxh7 {[%clk 0:00:19]} 43. Bxg6 {[%clk 0:00:17]}  Rh6 {[%clk 0:00:19]} 44. f5 {[%clk 0:00:16]}  exf5 {[%clk 0:00:19]} 45. Bxf5 {[%clk 0:00:14]}  Rf8 {[%clk 0:00:14]} 46. Rd5 {[%clk 0:00:14]}  Bb6 {[%clk 0:00:15]} 47. a4 {[%clk 0:00:14]}  Rhxf6 {[%clk 0:00:14]} 48. Bd3 {[%clk 0:00:13]}  bxa4 {[%clk 0:00:15]} 49. Bxa6 {[%clk 0:00:13]}  Rf5 {[%clk 0:00:11]} 50. Rd7 {[%clk 0:00:12]}  Bc7 {[%clk 0:00:09]} 51. Rd4 {[%clk 0:00:10]}  Rf4 {[%clk 0:00:08]} 52. Rd5 {[%clk 0:00:08]}  Ka7 {[%clk 0:00:07]} 53. Be2 {[%clk 0:00:07]}  Rxh4 {[%clk 0:00:07]} 54. Bxh5 {[%clk 0:00:06]}  Rh2 {[%clk 0:00:07]} 55. Bd1 {[%clk 0:00:05]}  Rff2 {[%clk 0:00:06]} 56. b4 {[%clk 0:00:01]}  axb3 {[%clk 0:00:05]} 57. Rb5 {[%clk 0:00:01]}  Rb2+ {[%clk 0:00:05]} 58. Kc1 {[%clk 0:00:00]}  Ra2 {[%clk 0:00:05]} 0-1


[Site "https://www.chess.com"]

[Event "Titled Tuesday Blitz November 07 Early 2023"]
[White "Ladan, Nicholas"]
[Black "Tatarinov, Dmitry"]
[WhiteFideId "30918855"]
[BlackFideId "24160067"]
[WhiteElo "2419"]
[BlackElo "2689"]
[Result "0-1"]
[Round "4"]
[TimeControl "180+1"]
[Date "2023.11.07"]
[WhiteClock "0:00:36"]
[BlackClock "0:00:57"]
[Board "91"]

1. d4 {[%clk 0:03:00]}  Nf6 {[%clk 0:03:00]} 2. Nf3 {[%clk 0:02:58]}  e6 {[%clk 0:02:59]} 3. g3 {[%clk 0:02:57]}  d5 {[%clk 0:03:00]} 4. Bg2 {[%clk 0:02:58]}  b5 {[%clk 0:03:00]} 5. O-O {[%clk 0:02:57]}  Be7 {[%clk 0:03:00]} 6. Ne5 {[%clk 0:02:57]}  O-O {[%clk 0:03:00]} 7. Bf4 {[%clk 0:02:53]}  Bb7 {[%clk 0:02:59]} 8. a4 {[%clk 0:02:49]}  b4 {[%clk 0:02:59]} 9. a5 {[%clk 0:02:49]}  c5 {[%clk 0:02:55]} 10. dxc5 {[%clk 0:02:47]}  Bxc5 {[%clk 0:02:55]} 11. Nd2 {[%clk 0:02:45]}  Nfd7 {[%clk 0:02:53]} 12. Nb3 {[%clk 0:02:43]}  Be7 {[%clk 0:02:53]} 13. h4 {[%clk 0:02:12]}  Nxe5 {[%clk 0:02:18]} 14. Bxe5 {[%clk 0:02:12]}  Nd7 {[%clk 0:02:19]} 15. Bd4 {[%clk 0:02:05]}  Ba6 {[%clk 0:02:18]} 16. Re1 {[%clk 0:02:04]}  Qc7 {[%clk 0:02:19]} 17. e4 {[%clk 0:02:02]}  dxe4 {[%clk 0:02:14]} 18. Bxe4 {[%clk 0:02:02]}  Rac8 {[%clk 0:01:16]} 19. Bxh7+ {[%clk 0:02:00]}  Kxh7 {[%clk 0:01:15]} 20. Qh5+ {[%clk 0:02:00]}  Kg8 {[%clk 0:01:15]} 21. Bxg7 {[%clk 0:02:00]}  Kxg7 {[%clk 0:01:12]} 22. Qg4+ {[%clk 0:01:49]}  Kh6 {[%clk 0:01:13]} 23. Qf4+ {[%clk 0:01:46]}  Kg6 {[%clk 0:01:12]} 24. Qg4+ {[%clk 0:01:44]}  Kh6 {[%clk 0:01:09]} 25. Rad1 {[%clk 0:01:26]}  Rg8 {[%clk 0:01:03]} 26. Rxe6+ {[%clk 0:00:55]}  fxe6 {[%clk 0:01:00]} 27. Qxe6+ {[%clk 0:00:56]}  Nf6 {[%clk 0:00:59]} 28. Rd5 {[%clk 0:00:46]}  Rxg3+ {[%clk 0:00:57]} 29. fxg3 {[%clk 0:00:36]}  Qxg3+ {[%clk 0:00:57]} 0-1


[Site "https://www.chess.com"]

[Event "Titled Tuesday Blitz November 07 Early 2023"]
[White "carokannlover213"]
[Black "Harriott, Tyrell"]
[BlackFideId "2086484"]
[WhiteElo "2688"]
[BlackElo "2344"]
[Result "1-0"]
[Round "4"]
[TimeControl "180+1"]
[Date "2023.11.07"]
[WhiteClock "0:00:48"]
[BlackClock "0:00:01"]
[Board "94"]

1. c4 {[%clk 0:03:00]}  e6 {[%clk 0:02:58]} 2. Nf3 {[%clk 0:03:00]}  d5 {[%clk 0:02:58]} 3. d4 {[%clk 0:02:54]}  c6 {[%clk 0:02:58]} 4. e3 {[%clk 0:02:52]}  Bd6 {[%clk 0:02:55]} 5. Bd3 {[%clk 0:02:51]}  f5 {[%clk 0:02:51]} 6. O-O {[%clk 0:02:49]}  Nf6 {[%clk 0:02:51]} 7. b3 {[%clk 0:02:49]}  Ne4 {[%clk 0:02:34]} 8. Ne5 {[%clk 0:02:45]}  O-O {[%clk 0:02:29]} 9. Bb2 {[%clk 0:02:44]}  Qg5 {[%clk 0:02:23]} 10. Nd2 {[%clk 0:02:42]}  Nd7 {[%clk 0:02:18]} 11. Ndf3 {[%clk 0:02:24]}  Qh6 {[%clk 0:02:03]} 12. Qe2 {[%clk 0:02:10]}  g5 {[%clk 0:01:56]} 13. Nxd7 {[%clk 0:02:03]}  Bxd7 {[%clk 0:01:55]} 14. Ne5 {[%clk 0:02:03]}  g4 {[%clk 0:01:51]} 15. f3 {[%clk 0:01:50]}  gxf3 {[%clk 0:01:48]} 16. gxf3 {[%clk 0:01:51]}  Nf6 {[%clk 0:01:24]} 17. Kh1 {[%clk 0:01:50]}  Kh8 {[%clk 0:01:23]} 18. Rg1 {[%clk 0:01:48]}  Be8 {[%clk 0:01:22]} 19. Rg2 {[%clk 0:01:43]}  Bh5 {[%clk 0:01:19]} 20. Rag1 {[%clk 0:01:42]}  Rg8 {[%clk 0:01:06]} 21. Qf2 {[%clk 0:01:28]}  Bxe5 {[%clk 0:00:47]} 22. dxe5 {[%clk 0:01:27]}  Ne4 {[%clk 0:00:34]} 23. fxe4 {[%clk 0:01:19]}  dxe4 {[%clk 0:00:33]} 24. Be2 {[%clk 0:01:19]}  Bg6 {[%clk 0:00:24]} 25. Ba3 {[%clk 0:01:15]}  Rge8 {[%clk 0:00:22]} 26. Qf4 {[%clk 0:01:04]}  Qg7 {[%clk 0:00:14]} 27. h4 {[%clk 0:01:03]}  Qf7 {[%clk 0:00:12]} 28. Qh6 {[%clk 0:00:54]}  Rg8 {[%clk 0:00:10]} 29. h5 {[%clk 0:00:54]}  Bxh5 {[%clk 0:00:09]} 30. Bxh5 {[%clk 0:00:54]}  Qc7 {[%clk 0:00:01]} 31. Qf6+ {[%clk 0:00:48]} 1-0


[Site "https://www.chess.com"]